Cogmind - Beta 16 @@@ ROGUE MODE // 2026.02.05 @ 15:33:20 Player: mule Result: Destroyed by Y-72 Warden with Railgun Performance ------------- Evolutions (7) 3500 Regions Visited (12) 2400 Robots Destroyed (148) 740 Value Destroyed (5530) 5530 Prototype IDs (13) 260 Alien Tech Used (0) 0 Bonus (582) 582 TOTAL SCORE: 13012 Bonus ------- High Alert Combat Kills 54 Follower Combat Kills 740 Friendly Fire -212 Cogmind --------- Core Integrity 0/1300 Matter 300/300 Energy 100/100 System Corruption 8% Temperature Cool (21) Movement Core (350) Ox6 Location -3/Research Parts ------- > --- POWER (3) -------- (None) > --- PROPULSION (5) --- (None) > --- UTILITY (9) ------ Large Storage Unit Improved Targeting Computer > --- WEAPON (4) ------- (None) > --- INVENTORY (15) --- (None) Peak State ------------ > --- POWER ------------ Fusion Compressor Light Antimatter Reactor Light Particle Reactor > --- PROPULSION ------- Myomer Leg Myomer Leg Myomer Leg Myomer Leg Biometal Leg > --- UTILITY ---------- Advanced Cryofiber Web Advanced Heat Sink Improved Coolant Injector Large Storage Unit Improved Targeting Computer Improved Medium Armor Plating Improved Thermal Shield Improved Thermal Shield High-powered Tractor Beam > --- WEAPON ----------- Improved Lightning Gun Heavy Beamcaster Cooled Plasma Cannon KE Penetrator > --- INVENTORY -------- Light Nuclear Core Micro Nuclear Core Light Angular Momentum Engine Fusion Compressor Micro Fission Core Carbon-fiber Leg Carbon-fiber Leg Carbon-fiber Leg Flexi-carbon Leg Armored Leg Myomer Leg Myomer Leg Medium Storage Unit Large Storage Unit Point Defense System [Rating: 126] Favorites ----------- Power Reinforced Deuterium Engine Engine Reinforced Deuterium Engine Power Core Light Nuclear Core Reactor Light Antimatter Reactor Propulsion Carbon-fiber Leg Leg Carbon-fiber Leg Utility Medium Storage Unit Device Improved Sensor Array Storage Medium Storage Unit Processor Improved Signal Interpreter Hackware System Shield Protection Improved Medium Armor Plating Weapon Heavy Beamcaster Energy Gun Heavy Beamcaster Energy Cannon Cooled Plasma Cannon Ballistic Gun Heavy Assault Rifle Ballistic Cannon Assault Cannon Launcher Improved Grenade Launcher Special Weapon Advanced Remote Datajack Build | -11 -10 -9 -8 -7 -7 -7 -6 -5 -4 -4 -4 -3 ------- Run | Yrd Mat Mat Mat Fac Was Fac Fac Fac Fac Upp Upp Res Slots Evolved 14 | . . 2 2 2 . . 2 2 2 . . 2 Power 2 | . . . 1 . . . . . 1 . . . Propulsion 3 | . . . 1 . . . . 1 . . . 1 Utility 7 | . . 2 . 2 . . 1 1 1 . . . Weapon 2 | . . . . . . . 1 . . . . 1 Parts Attached 163 | 7 5 15 39 27 7 5 5 17 8 7 . 21 Power 26 | 1 . 2 6 6 1 1 1 2 2 . . 4 Engine 13 | 1 . 2 6 1 . 1 1 . . . . 1 Core 10 | . . . . 5 1 . . 2 . . . 2 Reactor 3 | . . . . . . . . . 2 . . 1 Propulsion 42 | 2 2 4 14 1 . 3 2 1 3 3 . 7 Treads . | . . . . . . . . . . . . . Leg 42 | 2 2 4 14 1 . 3 2 1 3 3 . 7 Wheel . | . . . . . . . . . . . . . Hover . | . . . . . . . . . . . . . Flight . | . . . . . . . . . . . . . Utility 55 | 1 1 4 10 14 2 1 1 7 3 4 . 7 Device 35 | . 1 2 4 11 2 . 1 6 2 2 . 4 Storage 8 | 1 . 1 2 . . 1 . . . . . 3 Processor 7 | . . 1 3 2 . . . 1 . . . . Hackware 1 | . . . 1 . . . . . . . . . Protection 4 | . . . . 1 . . . . 1 2 . . Artifact . | . . . . . . . . . . . . . Weapon 40 | 3 2 5 9 6 4 . 1 7 . . . 3 Energy Gun 15 | 1 . 2 2 2 3 . 1 3 . . . 1 Energy Cannon 9 | . . . 4 2 . . . 3 . . . . Ballistic Gun 8 | 2 2 2 . 1 . . . . . . . 1 Ballistic Cannon 2 | . . . 1 . . . . 1 . . . . Launcher 5 | . . 1 2 1 1 . . . . . . . Special Weapon 1 | . . . . . . . . . . . . 1 Impact Weapon . | . . . . . . . . . . . . . Slashing Weapon . | . . . . . . . . . . . . . Piercing Weapon . | . . . . . . . . . . . . . Special Melee Weapon . | . . . . . . . . . . . . . Unidentified Prototypes 7 | . . 3 1 . . . . 3 . . . . Corrupted Parts 2 | . . . 1 . . . . . . . . 1 System Corruption 4 | . . . 2 . . . . . . . . 2 Parts Lost 85 | . . 6 20 4 3 . . 3 2 8 . 39 Power 17 | . . . 7 . . . . 1 . 1 . 8 Propulsion 27 | . . 2 8 1 1 . . . . 2 . 13 Utility 25 | . . 2 1 3 1 . . 1 2 3 . 12 Weapon 16 | . . 2 4 . 1 . . 1 . 2 . 6 Highest Loss Streak 39 | . . 4 9 3 3 . . 2 1 5 . 39 To Critical Strikes . | . . . . . . . . . . . . . Average Backups 8 | 3 7 9 9 9 5 5 9 9 9 9 8 11 Power 1 | . 1 . 1 1 3 2 3 2 1 2 2 3 Propulsion 2 | 3 3 3 2 3 . . 2 3 4 4 5 5 Utility 1 | . . 1 1 1 . . . 1 1 . 1 1 Weapon 2 | . 2 3 3 3 1 2 4 2 2 . . . Tool/Special . | . . . . . . . . . . . . . Unused Backups 39 | . 4 3 13 4 4 3 . 7 1 . . . Power 6 | . . 3 1 . . 2 . . . . . . Propulsion 6 | . 4 . 1 . 1 . . . . . . . Utility 8 | . . . 5 . 1 1 . . 1 . . . Weapon 19 | . . . 6 4 2 . . 7 . . . . Tool/Special . | . . . . . . . . . . . . . Average Slot Usage (%) 94 | . 97 83 93 96 89 99 99 96 99 97 89 84 Engine 7 | . 14 11 16 5 . 6 6 5 5 4 . . Core 5 | . . . . 9 15 8 5 5 9 5 10 5 Leg 21 | . 28 20 24 22 15 22 20 20 21 21 21 20 Device 22 | . 11 16 10 21 25 29 25 28 30 27 21 20 Storage 6 | . 14 11 11 7 . . 6 5 5 5 5 5 Processor 10 | . . 2 10 10 15 15 13 11 10 9 5 4 Energy Gun 9 | . 2 9 6 1 9 15 19 14 5 9 10 7 Energy Cannon 3 | . . . 4 5 . . . 1 10 5 5 3 Ballistic Gun 2 | . 25 9 . 3 . . . . . . . 2 Ballistic Cannon 1 | . . . 3 3 . . . . . . . . Peak Build Rating 126 | 6 11 18 35 45 49 55 70 85 102 102 90 126 Average Rating 55 | 4 10 14 24 39 42 53 67 78 94 97 89 100 On Entrance 48 | . 6 11 16 30 37 49 50 70 83 102 89 90 Avg Prop Armor Cover (%) 3 | . . . . . . . . . 3 . . . Naked Turns . | . . . . . . . . . . . . . Heaviest Build 89 | 11 16 27 38 41 41 45 54 63 72 79 63 89 Greatest Support 128 | 20 20 23 47 45 45 50 52 67 86 86 80 128 Greatest Overweight (x) 18 | 1 . 1 3 . . . 1 1 1 1 . 18 Average Overweight (x) . | . . . . . . . . . . . . . Largest Inventory Capacity 15 | 8 8 10 10 10 10 10 10 10 10 10 10 15 Average Capacity 9 | 7 8 9 10 10 5 5 10 10 10 10 10 13 Most Carried 15 | 6 8 10 10 10 10 10 10 10 10 10 9 15 Average Carried 8 | 4 7 9 9 9 5 5 9 9 9 9 8 11 Final Capacity 15 | 8 8 10 10 10 5 10 10 10 10 10 10 15 Final Carried 10 | 6 8 9 10 10 5 10 10 10 10 8 9 . Class Distribution -------------------- 35% | Scavenger-Mutant 23% | Mutant 19% | Scavenger-Tank 10% | Scavenger-Skirmisher 9% | Scavenger-Gunner Dominant Class ---------------- Mutant | -10/Materials Mutant | -9/Materials Scavenger-Mutant | -8/Materials Mutant | -7/Factory Scavenger-Mutant | -7/Waste Scavenger-Mutant | -7/Factory Scavenger-Skirmisher | -6/Factory Scavenger-Gunner | -5/Factory Scavenger-Tank | -4/Factory Scavenger-Tank | -4/Upper Caves Scavenger-Tank | -4/Upper Caves Scavenger-Tank | -3/Research Resources | -11 -10 -9 -8 -7 -7 -7 -6 -5 -4 -4 -4 -3 ----------- Run | Yrd Mat Mat Mat Fac Was Fac Fac Fac Fac Upp Upp Res Matter Collected 3473 | 188 160 444 707 619 229 68 70 165 147 142 . 534 Remotely 397 | . . . . . . . . . . . . 397 Salvage Created 6877 | . 160 773 1453 1105 30 642 88 703 688 592 . 643 Parts 314 | . 6 37 93 50 3 33 5 20 16 20 . 31 Haulers Intercepted 7 | . . 2 1 1 . 1 . 1 1 . . . Recyclers Shooed 4 | . . 2 1 . . . . 1 . . . . Parts Field Recycled . | . . . . . . . . . . . . . Retrieved Matter . | . . . . . . . . . . . . . Parts Self-Destructed 17 | . . . . . . . . . . 17 . . Prevented . | . . . . . . . . . . . . . Parts Restored . | . . . . . . . . . . . . . Kills | -11 -10 -9 -8 -7 -7 -7 -6 -5 -4 -4 -4 -3 ------- Run | Yrd Mat Mat Mat Fac Was Fac Fac Fac Fac Upp Upp Res Combat Hostiles Destroyed 106 | . 4 14 28 16 1 7 2 8 8 11 . 7 Guns 56 | . 4 8 12 9 . 6 2 3 1 6 . 5 Cannons 28 | . . . 7 7 . . . 3 6 5 . . AOE 17 | . . 6 8 . 1 . . 2 . . . . Classes Destroyed 13 | . 1 5 5 1 . . . . . 1 . . Worker 7 | . . . 4 . . 2 . . . . . 1 Builder 6 | . . . 5 . . . . . . . . 1 Hauler 7 | . . 2 1 1 . 1 . 1 1 . . . Recycler 15 | . . 3 4 4 . 2 . 1 . . . 1 Operator 2 | . . . 1 . . . . 1 . . . . Watcher 5 | . . 1 1 . . 3 . . . . . . Swarmer 21 | . . 6 4 4 1 . 1 . . 5 . . Grunt 42 | . 4 6 13 7 . 2 . 1 3 1 . 5 Brawler 1 | . . . . . . . . . . 1 . . Duelist 3 | . . . 2 . . . . . . 1 . . Sentry 20 | . . 2 8 2 . 3 1 2 1 1 . . Hunter 7 | . . . 1 1 . . . 1 2 2 . . Programmer 12 | . . . . 2 . 2 . 4 2 . . 2 Best Kill Streak 10 | . 3 5 10 6 1 3 1 2 5 8 . 5 Combat Bots Only 8 | . 3 5 7 4 1 1 1 2 5 8 . 4 Max Kills in Single Turn 4 | . 1 3 4 1 1 1 1 2 3 2 . 2 Gunslinging 1 | . . 1 . . . . . . . . . . Exploded 3 | . . 3 2 . 1 . . 2 . . . . Melee . | . . . . . . . . . . . . . Uniques/NPCs Destroyed . | . . . . . . . . . . . . . Combat | -11 -10 -9 -8 -7 -7 -7 -6 -5 -4 -4 -4 -3 -------- Run | Yrd Mat Mat Mat Fac Was Fac Fac Fac Fac Upp Upp Res Hostile Shots Fired 1283 | . 26 105 179 160 2 63 33 50 128 108 10 419 Missed 407 | . 6 34 52 58 . 27 12 16 44 32 5 121 Deflected 2 | . . . . . . . . . . 2 . . Hits 876 | . 20 71 127 102 2 36 21 34 84 76 5 298 Melee 11 | . . . 4 . 2 . . . . 5 . . Projectile 865 | . 20 71 123 102 . 36 21 34 84 71 5 298 AOE 1 | . . . . . . . . 1 . . . . Critical Strikes 36 | . . . 10 6 . 3 1 1 4 2 . 9 Part Disruptions 1 | . . . . . . . . . 1 . . . Damage Taken 13441 | . 244 957 2231 1156 159 429 327 859 910 1141 78 4950 Core 2405 | . 45 176 377 196 7 63 31 97 31 78 . 1304 Absorbed by Shields 378 | . . . . . . . . 75 303 . . . Redirected to Shielding 102 | . . . . . . . . . 102 . . . Ignored by Resistances 626 | . . . . . . . . 26 74 88 29 409 Regen/Repaired (Parts) 469 | . . . 44 92 36 158 13 87 39 . . . Core Remaining (%) 75 | 100 82 56 31 . . 62 96 90 . . 90 . Volleys Fired 348 | . 16 43 101 46 18 28 3 26 21 23 . 23 Largest 4 | . 2 2 2 2 2 2 3 3 3 3 . 4 Hottest 243 | . 46 101 121 117 105 162 243 243 214 214 . 209 Shots Fired 769 | . 32 84 173 92 31 57 9 78 63 67 1 82 Gun 504 | . 32 75 85 46 18 57 9 56 21 43 1 61 Cannon 224 | . . . 69 46 . . . 22 42 24 . 21 Launcher 41 | . . 9 19 . 13 . . . . . . . Special . | . . . . . . . . . . . . . Kinetic 197 | . 32 60 30 46 8 . . 2 . . . 19 Thermal 469 | . . 11 118 21 10 57 9 76 63 65 1 38 Explosive 28 | . . 9 19 . . . . . . . . . Electromagnetic 75 | . . 4 6 25 13 . . . . 2 . 25 Robot Hit Streak 17 | . 11 14 17 8 7 8 4 13 14 13 . 8 Robot Miss Streak 5 | . 2 5 5 2 2 4 1 3 5 4 . 3 Penetration Max 1 | . . . . 1 . . . . . . . 1 Secondary Targets 5 | . 1 2 1 1 . . . . . . . . Max Gunslinging Chain 1 | . 1 1 1 1 . . . . . . . . Shots Hit Robots 477 | . 24 48 100 62 23 32 3 47 43 39 . 56 Core Hits 248 | . 7 27 67 32 6 18 3 23 19 21 . 25 Critical Kills 5 | . . . 1 . . . . . 2 . . 2 Critical Parts Destroyed 1 | . . . . . . . . . . . . 1 Critical Strikes 20 | . . . 3 . 1 2 . 5 4 1 . 4 Burn 12 | . . . 2 . . 2 . 4 2 1 . 1 Meltdown 5 | . . . 1 . . . . . 2 . . 2 Destroy 2 | . . . . . 1 . . . . . . 1 Blast 1 | . . . . . . . . 1 . . . . Melee Attacks . | . . . . . . . . . . . . . Impact . | . . . . . . . . . . . . . Slashing . | . . . . . . . . . . . . . Piercing . | . . . . . . . . . . . . . Sneak Attacks . | . . . . . . . . . . . . . Combat Hostiles . | . . . . . . . . . . . . . Follow-up Attacks . | . . . . . . . . . . . . . Damage Inflicted 13888 | . 384 1066 3501 1375 458 837 115 1945 1384 1106 . 1717 Guns 6821 | . 373 664 1044 688 278 771 93 898 284 624 . 1104 Cannons 4001 | . . . 785 676 . . . 390 1099 482 . 569 Explosions 2863 | . . 387 1648 . 180 . . 609 . . . 39 Melee . | . . . . . . . . . . . . . Ramming 203 | . 11 15 24 11 . 66 22 48 1 . . 5 Kinetic 2529 | . 373 506 339 712 127 . . 37 . . . 435 Thermal 8257 | . . 86 1672 399 151 771 93 1781 1383 1079 . 842 Explosive 1753 | . . 387 1366 . . . . . . . . . Electromagnetic 1146 | . . 72 100 253 180 . . 79 . 27 . 435 Impact . | . . . . . . . . . . . . . Slashing . | . . . . . . . . . . . . . Piercing . | . . . . . . . . . . . . . Highest Corruption 8 | . . . 2 . 1 1 . 1 2 6 6 8 Average Corruption 2 | . . . 2 . 1 1 . 1 2 2 6 5 Corruption Purged . | . . . . . . . . . . . . . Corruption Blocked . | . . . . . . . . . . . . . Effects 61 | . . . 12 . 7 9 . 1 7 13 7 5 Message Errors 13 | . . . 3 . . 1 . 1 1 4 1 2 Matter Fused 17 | . . . 2 . 4 2 . . 2 2 3 2 Heat Flow Errors 8 | . . . 4 . 1 . . . . 3 . . Energy Discharges 11 | . . . 2 . 2 2 . . 2 1 2 . Parts Fused 1 | . . . . . . . . . 1 . . . Data Loss (minor) 6 | . . . 1 . . 3 . . 1 1 . . Data Loss (major) 1 | . . . . . . . . . . . . 1 Misfires 2 | . . . . . . 1 . . . . 1 . Alerts 1 | . . . . . . . . . . 1 . . Weapon Failures 1 | . . . . . . . . . . 1 . . Overload Shots . | . . . . . . . . . . . . . Overflow Damage 355 | . . 33 131 10 . . . 179 . . . 2 Projectiles 27 | . . . . 10 . . . 15 . . . 2 Explosions 328 | . . 33 131 . . . . 164 . . . . Melee . | . . . . . . . . . . . . . Knockbacks 6 | . . . 3 . . 1 . 2 . . . . Impact 3 | . . . . . . 1 . 2 . . . . Kinetic 3 | . . . 3 . . . . . . . . . Secondary . | . . . . . . . . . . . . . Self-Inflicted Damage 630 | . . 182 129 . 44 . . 260 . . . 15 Shots 16 | . . 4 3 . 4 . . 4 . . . 1 Rammed . | . . . . . . . . . . . . . Targets Rammed 32 | . 1 4 4 2 . 8 3 6 1 . . 3 Kicked 32 | . 1 4 4 2 . 8 3 6 1 . . 3 Crushed . | . . . . . . . . . . . . . Highest Temperature 344 | . . . 344 276 202 199 188 196 5 . . 282 Average Temperature 91 | . . . 93 63 79 85 99 99 5 . . 145 Received Heat Transfer 2824 | . 135 246 774 294 9 60 126 72 45 132 33 898 Effects 3 | . . . 2 . . . . . . . . 1 Shutdowns 1 | . . . 1 . . . . . . . . . Energy Bleed 1 | . . . . . . . . . . . . 1 Short Circuit 1 | . . . 1 . . . . . . . . . Siege Activations . | . . . . . . . . . . . . . Martial Activations . | . . . . . . . . . . . . . Shielding Activations 1 | . . . . . . . . . . 1 . . Total Turns 6 | . . . . . . . . . . 6 . . Longest Duration 6 | . . . . . . . . . . 6 . . Robots Disrupted . | . . . . . . . . . . . . . Combat Hostiles . | . . . . . . . . . . . . . Robots Corrupted . | . . . . . . . . . . . . . Combat Hostiles . | . . . . . . . . . . . . . Parts Fried . | . . . . . . . . . . . . . Impact Corruptions . | . . . . . . . . . . . . . Robots Melted 6 | . . . 1 . . 1 . . 2 . . 2 Combat Hostiles 5 | . . . 1 . . 1 . . 1 . . 2 Parts Melted 41 | . . 1 3 . . 5 . 9 9 8 . 6 Heat Transferred 13777 | . . 185 3316 750 296 1332 148 2378 2242 1786 . 1344 Parts Sabotaged . | . . . . . . . . . . . . . Parts Stolen . | . . . . . . . . . . . . . Parts Stripped . | . . . . . . . . . . . . . Power Chain Reactions 3 | . . . 2 . . . . . . . . 1 Alert | -11 -10 -9 -8 -7 -7 -7 -6 -5 -4 -4 -4 -3 ------- Run | Yrd Mat Mat Mat Fac Was Fac Fac Fac Fac Upp Upp Res Maximum Alert Level 2 | . . . 1 . . 2 1 . . . . . Low Security (%) 74 | 100 100 100 45 100 100 14 9 100 100 . . 100 Level 1 19 | . . . 54 . . 44 90 . . . . . Level 2 5 | . . . . . . 40 . . . . . . Level 3 . | . . . . . . . . . . . . . Level 4 . | . . . . . . . . . . . . . Level 5 . | . . . . . . . . . . . . . High Security . | . . . . . . . . . . . . . Max Security . | . . . . . . . . . . . . . Peak Influence 507 | . 90 199 383 157 64 507 357 187 92 . . 74 Initial 224 | . . 16 78 102 44 . 224 130 87 . . 30 Average 125 | . 41 99 187 83 5 335 271 58 30 . . 14 Influence Increases 4797 | . 130 585 1067 463 57 969 263 489 250 240 45 239 Destroy 0b10 Robot/C 2460 | . 80 280 560 320 20 360 160 160 160 220 . 140 Destroy 0b10 Robot/NC 220 | . . 30 80 25 . 50 . 15 5 . . 15 Destroy Leader 594 | . 20 66 154 72 . 118 30 52 42 20 . 20 Allied During Kill 425 | . . . . . . 367 58 . . . . . Successful Hack 143 | . . 12 31 28 . . . 60 12 . . . Disable Machine 300 | . . 60 45 . . 45 15 120 15 . . . Destroy Structure 385 | . . 77 137 3 37 29 . 82 16 . . 4 Partial Spotted 15 | . . 15 . . . . . . . . . . Lose Combat Pursuer 255 | . 30 45 60 15 . . . . . . 45 60 Influence Decreases 4797 | . 90 440 1026 562 184 510 455 577 345 260 64 284 Entered New Map 862 | . . 24 107 124 83 . 235 137 92 32 13 15 Time Decay 2947 | . 90 356 569 398 52 430 110 410 233 148 51 100 Lost Part 613 | . . 60 200 40 14 . . 30 20 80 . 169 Lost Ally 225 | . . . . . 35 80 110 . . . . . Purge Threat 150 | . . . 150 . . . . . . . . . Squads Dispatched 34 | . 1 2 5 6 . 6 3 6 2 . . 3 Investigation 6 | . 1 . 2 2 . . . 1 . . . . Extermination 10 | . . . . 3 . 2 . 3 2 . . . Reinforcement 13 | . . 2 2 1 . 4 1 2 . . . 1 Assault . | . . . . . . . . . . . . . Garrison 5 | . . . 1 . . . 2 . . . . 2 Intercept . | . . . . . . . . . . . . . Searches Triggered . | . . . . . . . . . . . . . Construction Impeded 1 | . . . . . . . . 1 . . . . Haulers Reinforced 2 | . . . . . . . . 1 . . . 1 Active Scanning Responses . | . . . . . . . . . . . . . Cargo Convoy Interrupts . | . . . . . . . . . . . . . Stealth | -11 -10 -9 -8 -7 -7 -7 -6 -5 -4 -4 -4 -3 --------- Run | Yrd Mat Mat Mat Fac Was Fac Fac Fac Fac Upp Upp Res Distress Signals 10 | . 1 1 4 . . 1 . 1 . . . 2 Communications Jammed . | . . . . . . . . . . . . . Distress Signals . | . . . . . . . . . . . . . Times Spotted 218 | . 9 29 45 19 6 24 12 19 14 11 3 27 Peak Tracking Total 15 | . 5 5 5 4 5 3 7 4 6 8 3 15 Tactical Retreats 12 | . 1 2 3 1 . 1 . . . . 1 3 ECM-based Alert Blocks 1 | . . . . . . 1 . . . . . . Traps | -11 -10 -9 -8 -7 -7 -7 -6 -5 -4 -4 -4 -3 ------- Run | Yrd Mat Mat Mat Fac Was Fac Fac Fac Fac Upp Upp Res Traps Triggered 4 | . 1 . 1 2 . . . . . . . . Indirectly . | . . . . . . . . . . . . . Trap Hack Attempts . | . . . . . . . . . . . . . Triggered . | . . . . . . . . . . . . . Disarmed . | . . . . . . . . . . . . . Reprogrammed . | . . . . . . . . . . . . . Reused . | . . . . . . . . . . . . . Traps Extracted . | . . . . . . . . . . . . . Installed . | . . . . . . . . . . . . . Triggered . | . . . . . . . . . . . . . Machines | -11 -10 -9 -8 -7 -7 -7 -6 -5 -4 -4 -4 -3 ---------- Run | Yrd Mat Mat Mat Fac Was Fac Fac Fac Fac Upp Upp Res Machines Disabled 20 | . . 4 3 . . 3 1 8 1 . . . Max in Single Turn 5 | . . 2 1 . . . 1 5 1 . . . Machines Repaired . | . . . . . . . . . . . . . Machines Dismantled . | . . . . . . . . . . . . . Machines Sabotaged . | . . . . . . . . . . . . . Overloaded Fab Kills . | . . . . . . . . . . . . . Hacking | -11 -10 -9 -8 -7 -7 -7 -6 -5 -4 -4 -4 -3 --------- Run | Yrd Mat Mat Mat Fac Was Fac Fac Fac Fac Upp Upp Res Machines Accessed 22 | . . 3 6 3 . 1 . 7 2 . . . Terminals 11 | . . 2 3 . . 1 . 4 1 . . . Fabricators 2 | . . . . 2 . . . . . . . . Repair Stations 4 | . . . 1 1 . . . 1 1 . . . Recycling Units 3 | . . 1 1 . . . . 1 . . . . Scanalyzers 1 | . . . . . . . . 1 . . . . Garrison Access 1 | . . . 1 . . . . . . . . . Total Hacks 57 | . . 9 16 9 . 1 . 18 4 . . . Successful 29 | . . 6 7 3 . . . 9 4 . . . Failed 28 | . . 3 9 6 . 1 . 9 . . . . Catastrophic 9 | . . . 3 1 . 1 . 4 . . . . Database Lockouts . | . . . . . . . . . . . . . Manual 3 | . . . 1 . . 1 . 1 . . . . Terminals 31 | . . 8 8 . . 1 . 12 2 . . . Fabricators 5 | . . . . 5 . . . . . . . . Repair Stations 12 | . . . 3 4 . . . 3 2 . . . Recycling Units 5 | . . 1 3 . . . . 1 . . . . Scanalyzers 2 | . . . . . . . . 2 . . . . Garrison Access 2 | . . . 2 . . . . . . . . . Terminal Hacks 13 | . . 5 2 . . . . 4 2 . . . Prototype ID Bank 3 | . . 2 . . . . . . 1 . . . Branch Access Points 1 | . . 1 . . . . . . . . . . Unreport Threat 1 | . . . 1 . . . . . . . . . Locate Traps 3 | . . . . . . . . 3 . . . . Dispatch Records 1 | . . 1 . . . . . . . . . . Security Status 1 | . . . . . . . . . 1 . . . Assault Status 1 | . . . 1 . . . . . . . . . Zone Layout 2 | . . 1 . . . . . 1 . . . . Fabricator Hacks 1 | . . . . 1 . . . . . . . . Build 1 | . . . . 1 . . . . . . . . Repair Station Hacks 8 | . . . 2 2 . . . 2 2 . . . Scan Component 4 | . . . 1 1 . . . 1 1 . . . Repair 4 | . . . 1 1 . . . 1 1 . . . Recycling Unit Hacks 5 | . . 1 3 . . . . 1 . . . . Report Inventory 3 | . . 1 1 . . . . 1 . . . . Retrieve Matter 1 | . . . 1 . . . . . . . . . Retrieve Components 1 | . . . 1 . . . . . . . . . Scanalyzer 2 | . . . . . . . . 2 . . . . Insert Component 1 | . . . . . . . . 1 . . . . Analyze 1 | . . . . . . . . 1 . . . . Garrison Access Hacks . | . . . . . . . . . . . . . Unauthorized Hacks . | . . . . . . . . . . . . . Terminals . | . . . . . . . . . . . . . Fabricators . | . . . . . . . . . . . . . Repair Stations . | . . . . . . . . . . . . . Recycling Units . | . . . . . . . . . . . . . Scanalyzers . | . . . . . . . . . . . . . Garrison Access . | . . . . . . . . . . . . . Data Cores Recovered 1 | . . . 1 . . . . . . . . . Used . | . . . . . . . . . . . . . Hacking Detections 19 | . . 2 5 3 . 1 . 6 2 . . . Full Trace Events 3 | . . . 1 1 . . . 1 . . . . Feedback Events . | . . . . . . . . . . . . . Feedback Blocked . | . . . . . . . . . . . . . Robot Schematics Acquired . | . . . . . . . . . . . . . Robots Built . | . . . . . . . . . . . . . Authchips . | . . . . . . . . . . . . . Time . | . . . . . . . . . . . . . Total Robot Build Rating . | . . . . . . . . . . . . . Part Schematics Acquired 1 | . . . . . . . . 1 . . . . Parts Built 2 | . . . . 2 . . . . . . . . Authchips . | . . . . . . . . . . . . . Time 47 | . . . . 47 . . . . . . . . Total Part Build Rating 10 | . . . . 10 . . . . . . . . Part Studies Acquired . | . . . . . . . . . . . . . Parts Repaired 4 | . . . 1 1 . . . 1 1 . . . Time 110 | . . . 13 19 . . . 50 28 . . . Parts Recycled . | . . . . . . . . . . . . . Recycled Matter . | . . . . . . . . . . . . . Retrieved Matter . | . . . . . . . . . . . . . Retrieved Components 9 | . . . 9 . . . . . . . . . Parts Scanalyzed 1 | . . . . . . . . 1 . . . . Part Schematics Acquired 1 | . . . . . . . . 1 . . . . Parts Damaged . | . . . . . . . . . . . . . Bothacking | -11 -10 -9 -8 -7 -7 -7 -6 -5 -4 -4 -4 -3 ------------ Run | Yrd Mat Mat Mat Fac Was Fac Fac Fac Fac Upp Upp Res Used RIF Installer . | . . . . . . . . . . . . . Robots Hacked . | . . . . . . . . . . . . . Non-combat . | . . . . . . . . . . . . . Combat . | . . . . . . . . . . . . . Robot Hacks Applied . | . . . . . . . . . . . . . Relay Couplers Released . | . . . . . . . . . . . . . Fabnet Peak Effective % . | . . . . . . . . . . . . . Robots Rewired . | . . . . . . . . . . . . . Allies Hacked . | . . . . . . . . . . . . . Hacks Repelled . | . . . . . . . . . . . . . Allies | -11 -10 -9 -8 -7 -7 -7 -6 -5 -4 -4 -4 -3 -------- Run | Yrd Mat Mat Mat Fac Was Fac Fac Fac Fac Upp Upp Res Total Allies 20 | . . . . . 20 . . . . . . . Largest Group 18 | . . . . . 18 12 6 . . . . . Highest-Rated Group 461 | . . . . . 461 365 171 . . . . . Highest-Rated Ally 35 | . . . . . 35 35 31 . . . . . Total Orders 2 | . . . . . . . 2 . . . . . EXPLORE 2 | . . . . . . . 2 . . . . . Ally Attacks 260 | . . . . . 135 93 32 . . . . . Total Damage 8465 | . . . . . 5338 2482 645 . . . . . Kills 33 | . . . . . 12 15 6 . . . . . Allies Corrupted . | . . . . . . . . . . . . . Allies Melted . | . . . . . . . . . . . . . Intel | -11 -10 -9 -8 -7 -7 -7 -6 -5 -4 -4 -4 -3 ------- Run | Yrd Mat Mat Mat Fac Was Fac Fac Fac Fac Upp Upp Res Active Infowar (turns) 5317 | . . . . 839 599 1188 233 1508 936 14 . . Sensors 4956 | . . . . 478 599 1188 233 1508 936 14 . . Cloaking 2749 | . . . . 554 463 1053 230 449 . . . . ECM 1909 | . . . . 58 599 1188 64 . . . . . Robot Analysis Total . | . . . . . . . . . . . . . Derelict Logs Recovered 2 | . . . . . . . . . . 1 1 . Drone Launches 3 | . . . . . . . 3 . . . . . Drone Recoveries 1 | . . . . . . . 1 . . . . . Exploration | -11 -10 -9 -8 -7 -7 -7 -6 -5 -4 -4 -4 -3 ------------- Run | Yrd Mat Mat Mat Fac Was Fac Fac Fac Fac Upp Upp Res Turns Passed 9641 | 73 259 814 1792 957 599 1188 233 1522 937 657 257 353 Spaces Moved 5495 | 50 154 307 967 571 427 849 110 739 520 420 214 167 Core 11 | 9 . . . . . . . . . . . 2 Treads . | . . . . . . . . . . . . . Legs 5484 | 41 154 307 967 571 427 849 110 739 520 420 214 165 Wheels . | . . . . . . . . . . . . . Hover . | . . . . . . . . . . . . . Flight . | . . . . . . . . . . . . . Fastest Speed 50 | 50 120 120 120 120 120 120 120 120 120 120 120 118 Average Speed 133 | 115 120 170 140 120 120 120 160 138 154 127 120 128 Slowest Speed 950 | 120 120 190 330 120 120 120 190 190 196 190 120 950 Overloaded Moves . | . . . . . . . . . . . . . Propulsion Burnouts . | . . . . . . . . . . . . . Robots Hopped . | . . . . . . . . . . . . . Potential Cave-ins 3 | . . . 3 . . . . . . . . . Cave-ins Triggered . | . . . . . . . . . . . . . Exploration Rate (%) 28 | 4 25 30 60 12 95 23 17 20 14 46 25 4 Regions Visited 12 Branch Regions 2 Pre-discovered Areas 1 | . . . . . . . . . . 1 . . Known Exits Taken 4 | . . . . . . 1 1 1 1 . . . Unknown Exits Taken 6 | 1 1 1 1 . . . . . . 1 1 . Scrap Searched 2 | . . . . . . . . . . 2 . . Spaces Dug 13 | . . . 10 . . . . 2 . . . 1 Terrain Destroyed 304 | . . 77 160 2 . 1 . 45 8 9 . 2 Melee . | . . . . . . . . . . . . . Projectile 56 | . . . 24 2 . 1 . 10 8 9 . 2 AOE 248 | . . 77 136 . . . . 35 . . . . Terrain Rammed . | . . . . . . . . . . . . . Walls Destroyed . | . . . . . . . . . . . . . Machines Disabled . | . . . . . . . . . . . . . Actions | -11 -10 -9 -8 -7 -7 -7 -6 -5 -4 -4 -4 -3 --------- Run | Yrd Mat Mat Mat Fac Was Fac Fac Fac Fac Upp Upp Res Total 7100 | 62 201 516 1230 751 483 962 156 1185 609 485 214 246 Wait 796 | . 10 124 50 70 19 60 33 352 42 26 . 10 Move 5485 | 49 153 306 966 571 426 848 109 738 520 419 213 167 Hop . | . . . . . . . . . . . . . Pick Up 100 | 6 7 8 30 7 5 7 . 17 7 1 1 4 Fast Attach 87 | 5 2 7 23 17 5 2 1 12 . 3 . 10 Attach 51 | 1 . 3 11 2 3 . 2 4 5 4 . 16 Detach 11 | . . 3 2 2 1 . . 1 1 . . 1 Swap 68 | 1 3 6 11 13 1 3 4 6 6 7 . 7 Drop 123 | . 9 12 32 21 5 6 1 23 7 2 . 5 Fire 348 | . 16 43 101 46 18 28 3 26 21 23 . 23 Melee . | . . . . . . . . . . . . . Ram . | . . . . . . . . . . . . . Kick 31 | . 1 4 4 2 . 8 3 6 . . . 3 Crush . | . . . . . . . . . . . . . Escape Stasis . | . . . . . . . . . . . . . Rewire . | . . . . . . . . . . . . . Trap . | . . . . . . . . . . . . . Miscellaneous . | . . . . . . . . . . . . . Route ------- -11/Scrapyard -10/Materials -9/Materials (discovered 4 exits: *Mat / Min / Sto x2) -8/Materials -7/Factory -7/Waste -7/Factory -6/Factory -5/Factory -4/Factory -4/Upper Caves -4/Upper Caves -3/Research History --------- Turn | Location | Event 16 | -11/Scrapyard | Discovered new exit (range 15) 74 | -11/Scrapyard | Entered Materials 306 | -10/Materials | Build established: Mutant 328 | -10/Materials | Discovered new exit (range 5) 333 | -10/Materials | Entered another Materials area 333 | -9/Materials | Evolved 2 slots: Utility x2 366 | -9/Materials | Identified exit to Mines 366 | -9/Materials | Identified exit to Storage 713 | -9/Materials | Build established: Scavenger-Mutant 929 | -9/Materials | Lost 4 parts (1n2u1w) 1085 | -9/Materials | Build established: Mutant 1113 | -9/Materials | Discovered new exit (range 16) 1147 | -9/Materials | Entered another Materials area 1147 | -8/Materials | Evolved 2 slots: Power x1, Propulsion x1 1311 | -8/Materials | Lost 3 parts (2p1w) 1638 | -8/Materials | Build established: Scavenger-Mutant 1818 | -8/Materials | Garrison activated, responded to threat 1909 | -8/Materials | Destroyed 7 combat bots 2168 | -8/Materials | Lost 9 parts (3p3n1u2w) 2385 | -8/Materials | Core integrity fell below 50% 2638 | -8/Materials | Repaired Aluminum Leg 2692 | -8/Materials | Build established: Mutant 2935 | -8/Materials | Discovered new exit (range 4) 2939 | -8/Materials | Entered Factory 2939 | -7/Factory | Evolved 2 slots: Utility x2 3056 | -7/Factory | Fabricated Cloaking Device (x2) 3284 | -7/Factory | Repaired Carbon-fiber Leg 3650 | -7/Factory | Lost 3 parts (1n2u) 3896 | -7/Factory | Sucked down chute 3896 | -7/Factory | Entered Waste 3897 | -7/Waste | Met a frightened Derelict 3904 | -7/Waste | Spotted C-40 Crusher 3920 | -7/Waste | Spotted C-40 Crusher 3923 | -7/Waste | Spotted C-40 Crusher 3949 | -7/Waste | Spotted C-40 Crusher 3964 | -7/Waste | Crushed by Compactor (1 part destroyed, 2 dropped) 3967 | -7/Waste | Crushed by Compactor (1 part destroyed, 2 dropped) 3969 | -7/Waste | Spotted C-40 Crusher 3986 | -7/Waste | Build established: Scavenger-Mutant 3987 | -7/Waste | Warlord forces began an assault 3996 | -7/Waste | Allies destroyed C-40 Crusher 3998 | -7/Waste | Lost 3 parts (1n1u1w) 3999 | -7/Waste | Allies destroyed C-40 Crusher 4003 | -7/Waste | Allies destroyed C-40 Crusher 4007 | -7/Waste | Allies destroyed C-40 Crusher 4012 | -7/Waste | Allies destroyed C-40 Crusher 4038 | -7/Waste | Spotted C-40 Crusher 4042 | -7/Waste | Lost 4 allies 4052 | -7/Waste | Allies destroyed C-40 Crusher 4082 | -7/Waste | Lost 3 allies 4416 | -7/Waste | Discovered new exit (range 16) 4480 | -7/Waste | Identified exit to Factory 4495 | -7/Waste | Entered Factory 4495 | -7/Factory | Accompanied by 12 allies 5352 | -7/Factory | Lost 3 allies 5660 | -7/Factory | Discovered new exit (range 16) 5681 | -7/Factory | Identified exit to Factory 5683 | -7/Factory | Entered another Factory area 5683 | -6/Factory | Accompanied by 6 allies 5683 | -6/Factory | Evolved 2 slots: Utility x1, Weapon x1 5787 | -6/Factory | Discovered new exit (range 38) 5796 | -6/Factory | Garrison activated, responded to threat 5871 | -6/Factory | Lost 4 allies 5914 | -6/Factory | Identified exit to Factory 5916 | -6/Factory | Entered another Factory area 5916 | -5/Factory | Evolved 2 slots: Propulsion x1, Utility x1 6249 | -5/Factory | Build established: Scavenger-Gunner 7023 | -5/Factory | Repaired Flexi-carbon Leg 7309 | -5/Factory | Build established: Scavenger-Skirmisher 7430 | -5/Factory | Discovered new exit (range 8) 7437 | -5/Factory | Identified exit to Factory 7438 | -5/Factory | Entered another Factory area 7438 | -4/Factory | Evolved 2 slots: Power x1, Utility x1 7622 | -4/Factory | Repaired Point Defense System 7657 | -4/Factory | Build established: Scavenger-Tank 8365 | -4/Factory | Discovered new exit (range 4) 8373 | -4/Factory | Identified exit to Upper Caves 8375 | -4/Factory | Entered Upper Caves 8423 | -4/Upper Caves | Lost 3 parts (1n1u1w) 8443 | -4/Upper Caves | Learned location of Testing (-3) 8794 | -4/Upper Caves | Attracted the attention of an 0b10 checkpoint 8973 | -4/Upper Caves | Destroyed 8 combat bots 8981 | -4/Upper Caves | Lost 5 parts (1p1n2u1w) 8993 | -4/Upper Caves | Discovered new exit (range 3) 9032 | -4/Upper Caves | Entered another Upper Caves area 9056 | -4/Upper Caves | Learned Research emergency access door positions 9149 | -4/Upper Caves | Discovered new exit (range 7) 9289 | -4/Upper Caves | Entered Research 9289 | -3/Research | Evolved 2 slots: Propulsion x1, Weapon x1 9480 | -3/Research | Garrison activated, responded to threat 9632 | -3/Research | Core integrity fell below 50% 9640 | -3/Research | Core integrity fell below 20% 9642 | -3/Research | Destroyed by Y-72 Warden with Railgun Last Messages --------------- 09633_ G-67 Veteran destroyed. 09633_ Acquired Adv. Heat Sink. 09634_ Slug penetrates Wall. 09634_ Penetrated by Slug. 09634_ Slug penetrates G-67 Veteran. 09635_ Critical hit (Burn: +50). 09635_ Med. Storage Unit destroyed. 09636_ Penetrated by Slug. 09636_ K-01 Serf collects debris. 09638_ Wall collapses. 09638_ Adv. Heat Sink destroyed. 09640_ K-01 Serf collects debris. 09640_ Slug penetrates U-05 Engineer. 09641_ Penetrated by Slug. 09641_ Lrg. Storage Unit destroyed. 09641_ Slug penetrates Wall. 09642_ Wall collapses. 09642_ U-05 Engineer builds a Wall. 09642_ R-10 Processor collects Corrupted Adv. Heat Sink. [Achievement: Just Browsing] Map ----- +----------------------------------------------------+ | ?????????????????????????????????????????????????? | | ???????????????+??+??????????????????????????????? | | ?????????????????????????????????????????????????? | | ??????????????? !!???????????????????????????????? | | ?????????????? ! ??????????????????????????????? | | ?????????????? ?????????????????????????????? | | ?????????????? ????????????????????????????? | | ?????????????? "????????????????????????????? | | ?????????????# " "###############+####???????? | | ???????????????? " # ???????? | | ???????????????????" + ??????? | | ??????????????????????# ??????? | | ??????????????????????# ??????? | | ??????????????????????#gg #### ####?????????????? | | ??????????????????????# ####/##########???????? | | ??????????????????????# # [% #???????? | | ??????????????????????# u# ! #???????? | | ??????????????????????# # #???????? | | ??????????????????????# [ #* #???????? | | ??????????????????????# !=R%= #???????? | | ??????????????????????# !g#! +???????? | | ??????????????????????#=!!=###############???????? | | ????????????###########!h]!# #????????????? | | ????????????# #*%!!# #????????????? | | ????????????# #!g]Y# #????????????? | | ????????????# #==@u#[ #????????????? | | ????????????# +!% %/g! #????????????? | | ????????????# # [!=;h! #????????????? | | ????????????# # [ #g k #????????????? | | ????????????# # # #????????????? | | ????????????# # # #????????????? | | ????????????########### ######+########???????? | | ?????????????# # # #???????? | | ?????????????# + # #???????? | | ?????????????# " # # #???????? | | ?????????????# """"# # #???????? | | ?????????????# """"# # #???????? | | ?????????????# """"# # """"#???????? | | ?????????????# """"# # """"#???????? | | ?????????????# # Y # """"#???????? | | ?????????????# # # """"#???????? | | ?????????????########?# # #???????? | | ??????????????????????# # #???????? | | ??????????????????????# #####+#########???????? | | ??????????????????????# #???????? | | ??????????????????????# #???????? | | ??????????????????????# #???????? | | ??????????????????????# #???????? | | ??????????????????????####+########## #???????? | | ??????????????????????# #????# #???????? | +----------------------------------------------------+ Best States ------------- Heat Dissipation 84 Coolant Potential 180 Energy Generation 59 Energy Capacity 460 Matter Stores 400 Matter Capacity 400 Sight Range 16 Robot Scan Range 15 Terrain Scan Density 85 ECM Strength 1 Cloak Strength 3 Additional Mass Support 9 Base Temperature (-) 200 Armor Coverage 450 Resistance: TH 25 Resistance: EM 20 Propulsion Shielding 66 Point Defense Rating 80 Evasion (%) 55 Targeting Accuracy 10 Energy Filtering 30 Particle Charging 20 Defensive Hacking 10 Item Schematics ----------------- Carbon-fiber Leg | -5/Factory | Scanalyzed Robot Schematics ------------------ None Fabricated ------------ Cloaking Device | x2 | -7/Factory | Preloaded Repaired ---------- Aluminum Leg | 51% | -8/Materials Carbon-fiber Leg | 16% | -7/Factory Flexi-carbon Leg | 35% | -5/Factory Point Defense System | 35% | -4/Factory Studied --------- None Alien Tech Used ----------------- None Achievements -------------- DIY Cooler Dangerous Findings Just Browsing Physics Protects Respectable Loadout Challenges ------------ None Game ------ Seed DecoderHardcellThermoblaster Manual? 0 Play Time 02:03:57 Cumulative 27.9 hours Start 2026.02.04 @ 15:16:06 End 2026.02.05 @ 15:33:20 Sessions 3 Manual Loads 0 Difficulty Rogue Special Mode None Game No. 36 Rogue 36 Adventurer 0 Explorer 0 Win Type - Total 0 Types 0/0/0/0/0/0/0/0/0/0 Lore% 7 Gallery% 26 Achievement% 18 Wizard Run 0 Options --------- Layout 0 ASCII 0 Keyboard 1 Movement Vi Keybinds 0 Fullscreen 1 Font 18/X11 Map View 38x25 Zoom Use 85% Tactical HUD 1 Map Filters NONE Filters NONE Steam 1 RUN: 932e576b-84b4-49ef-9df3-f2c8563fdd46